[Event "Titled Tuesday Blitz March 21 Early 2023"]
[White "Cuenca Jimenez, Jose Fernando"]
[Black "Grot, Blazej"]
[WhiteFideId "2255570"]
[BlackFideId "21835845"]
[WhiteElo "2429"]
[BlackElo "1823"]
[Result "1/2-1/2"]
[Round "05"]
[TimeControl "180+2"]
[Date "2023.03.21"]
[WhiteClock "0:00:03"]
[BlackClock "0:00:10"]

1. e4 {[%clk 0:03:00]}  c5 {[%clk 0:02:53]} 2. Nf3 {[%clk 0:03:00]}  e6 {[%clk 0:02:43]} 3. g3 {[%clk 0:02:58]}  Nc6 {[%clk 0:02:39]} 4. Bg2 {[%clk 0:02:58]}  Nf6 {[%clk 0:02:36]} 5. Qe2 {[%clk 0:02:58]}  d6 {[%clk 0:02:34]} 6. O-O {[%clk 0:02:56]}  e5 {[%clk 0:02:35]} 7. c3 {[%clk 0:02:53]}  Be7 {[%clk 0:02:34]} 8. Rd1 {[%clk 0:02:51]}  O-O {[%clk 0:02:30]} 9. h3 {[%clk 0:02:48]}  Qb6 {[%clk 0:02:24]} 10. Na3 {[%clk 0:02:46]}  Be6 {[%clk 0:02:20]} 11. Ng5 {[%clk 0:02:29]}  Bd7 {[%clk 0:02:16]} 12. Nc4 {[%clk 0:02:23]}  Qa6 {[%clk 0:02:12]} 13. d3 {[%clk 0:02:05]}  h6 {[%clk 0:02:08]} 14. Nf3 {[%clk 0:02:03]}  Be6 {[%clk 0:02:09]} 15. Nh4 {[%clk 0:01:45]}  Nxe4 {[%clk 0:02:03]} 16. Bxe4 {[%clk 0:01:20]}  d5 {[%clk 0:01:59]} 17. Bxd5 {[%clk 0:00:51]}  Bxd5 {[%clk 0:02:00]} 18. Nf5 {[%clk 0:00:52]}  Bf6 {[%clk 0:01:52]} 19. Qg4 {[%clk 0:00:38]}  Ne7 {[%clk 0:01:45]} 20. Nxh6+ {[%clk 0:00:36]}  Kh7 {[%clk 0:01:33]} 21. Nf5 {[%clk 0:00:34]}  Nxf5 {[%clk 0:01:28]} 22. Qxf5+ {[%clk 0:00:35]}  g6 {[%clk 0:01:24]} 23. Qg4 {[%clk 0:00:32]}  Rad8 {[%clk 0:01:22]} 24. Be3 {[%clk 0:00:30]}  Be6 {[%clk 0:01:12]} 25. Qf3 {[%clk 0:00:28]}  Bd5 {[%clk 0:01:08]} 26. Qe2 {[%clk 0:00:23]}  e4 {[%clk 0:01:03]} 27. Na3 {[%clk 0:00:12]}  exd3 {[%clk 0:00:58]} 28. Qxd3 {[%clk 0:00:12]}  Qe6 {[%clk 0:00:53]} 29. Bxc5 {[%clk 0:00:05]}  Qxh3 {[%clk 0:00:48]} 30. Qxd5 {[%clk 0:00:05]}  Rxd5 {[%clk 0:00:48]} 31. Rxd5 {[%clk 0:00:06]}  Rh8 {[%clk 0:00:43]} 32. Rad1 {[%clk 0:00:04]}  Kg8 {[%clk 0:00:35]} 33. Rd8+ {[%clk 0:00:03]}  Bxd8 {[%clk 0:00:31]} 34. Rxd8+ {[%clk 0:00:04]}  Kh7 {[%clk 0:00:25]} 35. Rxh8+ {[%clk 0:00:04]}  Kxh8 {[%clk 0:00:26]} 36. Bxa7 {[%clk 0:00:05]}  Qg4 {[%clk 0:00:21]} 37. Bd4+ {[%clk 0:00:05]}  Kg8 {[%clk 0:00:17]} 38. Nc4 {[%clk 0:00:04]}  Qd1+ {[%clk 0:00:17]} 39. Kg2 {[%clk 0:00:04]}  Qe2 {[%clk 0:00:16]} 40. Ne3 {[%clk 0:00:04]}  Qxb2 {[%clk 0:00:15]} 41. a4 {[%clk 0:00:02]}  Qa2 {[%clk 0:00:15]} 42. a5 {[%clk 0:00:02]}  Qxa5 {[%clk 0:00:14]} 43. Kg1 {[%clk 0:00:03]}  Qa1+ {[%clk 0:00:13]} 44. Kg2 {[%clk 0:00:04]}  Qa4 {[%clk 0:00:13]} 45. Kg1 {[%clk 0:00:03]}  Qc6 {[%clk 0:00:14]} 46. Ng4 {[%clk 0:00:03]}  Qa4 {[%clk 0:00:13]} 47. Nf6+ {[%clk 0:00:03]}  Kf8 {[%clk 0:00:13]} 48. Kh2 {[%clk 0:00:03]}  Qc4 {[%clk 0:00:12]} 49. Ne4 {[%clk 0:00:03]}  Qe2 {[%clk 0:00:11]} 50. Nf6 {[%clk 0:00:01]}  Qf3 {[%clk 0:00:10]} 51. Kg1 {[%clk 0:00:02]}  Ke7 {[%clk 0:00:09]} 52. Ng8+ {[%clk 0:00:02]}  Kf8 {[%clk 0:00:09]} 53. Nf6 {[%clk 0:00:03]}  Ke7 {[%clk 0:00:10]} 54. Ng8+ {[%clk 0:00:03]}  Kf8 {[%clk 0:00:10]} 55. Nf6 {[%clk 0:00:03]} 1/2-1/2


[Site "https://www.chess.com"]

[Event "Titled Tuesday Blitz March 21 Early 2023"]
[White "Begunov, Konstantin"]
[Black "Budrewicz, Krzysztof"]
[WhiteFideId "4118510"]
[BlackFideId "1127950"]
[WhiteElo "2079"]
[BlackElo "2230"]
[Result "1-0"]
[Round "05"]
[TimeControl "180+2"]
[Date "2023.03.21"]
[WhiteClock "0:00:10"]
[BlackClock "0:00:04"]

1. d4 {[%clk 0:02:45]}  d6 {[%clk 0:02:58]} 2. e4 {[%clk 0:02:45]}  g6 {[%clk 0:02:58]} 3. c4 {[%clk 0:02:44]}  Bg7 {[%clk 0:02:59]} 4. Nc3 {[%clk 0:02:45]}  c5 {[%clk 0:02:58]} 5. Be3 {[%clk 0:02:45]}  Nc6 {[%clk 0:02:57]} 6. Nge2 {[%clk 0:02:44]}  Qa5 {[%clk 0:02:57]} 7. Qd2 {[%clk 0:02:43]}  Nf6 {[%clk 0:02:56]} 8. f3 {[%clk 0:02:43]}  O-O {[%clk 0:02:55]} 9. Rd1 {[%clk 0:02:31]}  a6 {[%clk 0:02:53]} 10. a3 {[%clk 0:02:21]}  b5 {[%clk 0:02:43]} 11. cxb5 {[%clk 0:02:11]}  axb5 {[%clk 0:02:41]} 12. dxc5 {[%clk 0:02:11]}  dxc5 {[%clk 0:02:38]} 13. Bxc5 {[%clk 0:02:10]}  Rd8 {[%clk 0:02:30]} 14. Qe3 {[%clk 0:02:06]}  Rxd1+ {[%clk 0:02:29]} 15. Kxd1 {[%clk 0:02:03]}  b4 {[%clk 0:02:29]} 16. Bb6 {[%clk 0:01:29]}  Qe5 {[%clk 0:02:03]} 17. axb4 {[%clk 0:01:02]}  Ra1+ {[%clk 0:02:01]} 18. Nc1 {[%clk 0:00:55]}  Qd6+ {[%clk 0:01:41]} 19. Qd2 {[%clk 0:00:28]}  Qxb4 {[%clk 0:01:36]} 20. Be3 {[%clk 0:00:24]}  Be6 {[%clk 0:01:31]} 21. Be2 {[%clk 0:00:20]}  Nd7 {[%clk 0:01:29]} 22. Ke1 {[%clk 0:00:18]}  Bd4 {[%clk 0:01:01]} 23. Kf2 {[%clk 0:00:18]}  Bxe3+ {[%clk 0:01:00]} 24. Qxe3 {[%clk 0:00:18]}  Qxb2 {[%clk 0:00:57]} 25. Rd1 {[%clk 0:00:15]}  Nde5 {[%clk 0:00:47]} 26. Nd5 {[%clk 0:00:15]}  f6 {[%clk 0:00:36]} 27. Nd3 {[%clk 0:00:15]}  Nxd3+ {[%clk 0:00:31]} 28. Qxd3 {[%clk 0:00:13]}  Rxd1 {[%clk 0:00:30]} 29. Qxd1 {[%clk 0:00:13]}  Kf7 {[%clk 0:00:26]} 30. Ne3 {[%clk 0:00:13]}  Nd4 {[%clk 0:00:23]} 31. Qd3 {[%clk 0:00:13]}  h5 {[%clk 0:00:20]} 32. Nd1 {[%clk 0:00:13]}  Qb6 {[%clk 0:00:19]} 33. Kf1 {[%clk 0:00:12]}  Nc6 {[%clk 0:00:18]} 34. Qe3 {[%clk 0:00:12]}  Qb1 {[%clk 0:00:17]} 35. Kf2 {[%clk 0:00:12]}  Ne5 {[%clk 0:00:17]} 36. Nc3 {[%clk 0:00:12]}  Qb3 {[%clk 0:00:15]} 37. Nb5 {[%clk 0:00:11]}  Qb4 {[%clk 0:00:11]} 38. Nd4 {[%clk 0:00:11]}  Bd7 {[%clk 0:00:11]} 39. Qb3+ {[%clk 0:00:10]}  Qxb3 {[%clk 0:00:11]} 40. Nxb3 {[%clk 0:00:10]}  Nc6 {[%clk 0:00:11]} 41. Nd2 {[%clk 0:00:10]}  e5 {[%clk 0:00:11]} 42. Ke3 {[%clk 0:00:11]}  Ke7 {[%clk 0:00:11]} 43. Bc4 {[%clk 0:00:11]}  Nd4 {[%clk 0:00:10]} 44. Nb3 {[%clk 0:00:11]}  Nc2+ {[%clk 0:00:09]} 45. Kd2 {[%clk 0:00:11]}  Nb4 {[%clk 0:00:10]} 46. Kc3 {[%clk 0:00:11]}  Nc6 {[%clk 0:00:10]} 47. Bb5 {[%clk 0:00:11]}  Nb8 {[%clk 0:00:10]} 48. Bxd7 {[%clk 0:00:11]}  Nxd7 {[%clk 0:00:11]} 49. Nd2 {[%clk 0:00:11]}  Kd6 {[%clk 0:00:10]} 50. Kd3 {[%clk 0:00:11]}  Kc5 {[%clk 0:00:11]} 51. Nc4 {[%clk 0:00:12]}  Nb8 {[%clk 0:00:10]} 52. Ne3 {[%clk 0:00:13]}  Nc6 {[%clk 0:00:10]} 53. Nd5 {[%clk 0:00:13]}  f5 {[%clk 0:00:10]} 54. Nf6 {[%clk 0:00:11]}  f4 {[%clk 0:00:10]} 55. h4 {[%clk 0:00:10]}  Nd4 {[%clk 0:00:09]} 56. Nd7+ {[%clk 0:00:08]}  Kd6 {[%clk 0:00:09]} 57. Nf8 {[%clk 0:00:08]}  Ke7 {[%clk 0:00:08]} 58. Nxg6+ {[%clk 0:00:07]}  Kf6 {[%clk 0:00:08]} 59. Nxf4 {[%clk 0:00:07]}  Nc6 {[%clk 0:00:03]} 60. Nxh5+ {[%clk 0:00:08]}  Ke6 {[%clk 0:00:04]} 61. Ng3 {[%clk 0:00:08]}  Nd4 {[%clk 0:00:04]} 62. Ne2 {[%clk 0:00:09]}  Nb5 {[%clk 0:00:04]} 63. Ke3 {[%clk 0:00:09]}  Nd6 {[%clk 0:00:04]} 64. g3 {[%clk 0:00:10]}  Nc4+ {[%clk 0:00:04]} 65. Kf2 {[%clk 0:00:10]}  Kd6 {[%clk 0:00:04]} 66. f4 {[%clk 0:00:10]}  Ke6 {[%clk 0:00:04]} 67. Kf3 {[%clk 0:00:10]}  Kf6 {[%clk 0:00:04]} 68. Nc3 {[%clk 0:00:10]}  Nd2+ {[%clk 0:00:04]} 69. Ke3 {[%clk 0:00:10]}  Nf1+ {[%clk 0:00:04]} 70. Kf3 {[%clk 0:00:09]}  Nd2+ {[%clk 0:00:05]} 71. Ke3 {[%clk 0:00:10]}  Nf1+ {[%clk 0:00:05]} 72. Kf2 {[%clk 0:00:10]}  Nd2 {[%clk 0:00:05]} 73. h5 {[%clk 0:00:09]}  exf4 {[%clk 0:00:05]} 74. gxf4 {[%clk 0:00:09]}  Nc4 {[%clk 0:00:06]} 75. Kf3 {[%clk 0:00:09]}  Nd2+ {[%clk 0:00:05]} 76. Kg4 {[%clk 0:00:09]}  Nf1 {[%clk 0:00:05]} 77. e5+ {[%clk 0:00:10]}  Ke6 {[%clk 0:00:05]} 78. Ne4 {[%clk 0:00:10]}  Ne3+ {[%clk 0:00:06]} 79. Kg5 {[%clk 0:00:10]}  Nf5 {[%clk 0:00:06]} 80. h6 {[%clk 0:00:11]}  Nxh6 {[%clk 0:00:03]} 81. Kxh6 {[%clk 0:00:10]}  Kf5 {[%clk 0:00:04]} 82. Kg7 {[%clk 0:00:10]} 1-0


[Site "https://www.chess.com"]

[Event "Titled Tuesday Blitz March 21 Early 2023"]
[White "Vlassov, Nikolai"]
[Black "Fernandez Garcia, Gumersindo"]
[WhiteFideId "4103360"]
[BlackFideId "24516740"]
[WhiteElo "2324"]
[BlackElo "2093"]
[Result "1-0"]
[Round "05"]
[TimeControl "180+2"]
[Date "2023.03.21"]
[WhiteClock "0:00:14"]
[BlackClock "0:00:05"]

1. e4 {[%clk 0:03:00]}  Nf6 {[%clk 0:02:55]} 2. e5 {[%clk 0:02:57]}  Nd5 {[%clk 0:02:54]} 3. d4 {[%clk 0:02:57]}  Nb6 {[%clk 0:02:55]} 4. c4 {[%clk 0:02:51]}  d6 {[%clk 0:02:56]} 5. exd6 {[%clk 0:02:51]}  cxd6 {[%clk 0:02:57]} 6. Nc3 {[%clk 0:02:50]}  g6 {[%clk 0:02:57]} 7. a4 {[%clk 0:02:50]}  a5 {[%clk 0:02:47]} 8. c5 {[%clk 0:02:49]}  dxc5 {[%clk 0:02:36]} 9. Bb5+ {[%clk 0:02:49]}  Bd7 {[%clk 0:02:26]} 10. dxc5 {[%clk 0:02:48]}  Nc8 {[%clk 0:02:27]} 11. Nf3 {[%clk 0:02:42]}  Bg7 {[%clk 0:02:25]} 12. Bf4 {[%clk 0:02:38]}  Nc6 {[%clk 0:02:19]} 13. O-O {[%clk 0:02:36]}  O-O {[%clk 0:02:18]} 14. Nd5 {[%clk 0:02:31]}  N8a7 {[%clk 0:02:13]} 15. Nb6 {[%clk 0:02:25]}  Bg4 {[%clk 0:02:11]} 16. Nxa8 {[%clk 0:02:20]}  Qxa8 {[%clk 0:02:11]} 17. h3 {[%clk 0:02:16]}  Bf5 {[%clk 0:01:48]} 18. Qb3 {[%clk 0:02:10]}  e5 {[%clk 0:01:36]} 19. Be3 {[%clk 0:01:59]}  e4 {[%clk 0:01:33]} 20. Nh2 {[%clk 0:01:50]}  Be6 {[%clk 0:01:30]} 21. Qa3 {[%clk 0:01:42]}  Nb4 {[%clk 0:01:26]} 22. Rac1 {[%clk 0:01:37]}  Nac6 {[%clk 0:01:25]} 23. Ng4 {[%clk 0:01:32]}  h5 {[%clk 0:01:23]} 24. Nh2 {[%clk 0:01:22]}  Ne5 {[%clk 0:01:05]} 25. Rfd1 {[%clk 0:01:18]}  f5 {[%clk 0:01:01]} 26. Rd6 {[%clk 0:01:03]}  Bf7 {[%clk 0:00:49]} 27. Bd4 {[%clk 0:01:03]}  Bh6 {[%clk 0:00:40]} 28. Be3 {[%clk 0:00:56]}  Bg7 {[%clk 0:00:39]} 29. Nf1 {[%clk 0:00:55]}  Ned3 {[%clk 0:00:37]} 30. Bxd3 {[%clk 0:00:44]}  Nxd3 {[%clk 0:00:38]} 31. Rc2 {[%clk 0:00:43]}  f4 {[%clk 0:00:32]} 32. Bd4 {[%clk 0:00:43]}  Qc8 {[%clk 0:00:27]} 33. Bxg7 {[%clk 0:00:40]}  Kxg7 {[%clk 0:00:27]} 34. Qc3+ {[%clk 0:00:40]}  Kh7 {[%clk 0:00:28]} 35. c6 {[%clk 0:00:38]}  bxc6 {[%clk 0:00:21]} 36. Qxc6 {[%clk 0:00:36]}  Qf5 {[%clk 0:00:21]} 37. Qb5 {[%clk 0:00:33]}  Bb3 {[%clk 0:00:17]} 38. Rc7+ {[%clk 0:00:31]}  Kh6 {[%clk 0:00:17]} 39. Qxb3 {[%clk 0:00:29]}  f3 {[%clk 0:00:10]} 40. Ng3 {[%clk 0:00:17]}  Qf4 {[%clk 0:00:11]} 41. Rxg6+ {[%clk 0:00:14]}  Kxg6 {[%clk 0:00:11]} 42. Qe6+ {[%clk 0:00:15]}  Qf6 {[%clk 0:00:09]} 43. Qxe4+ {[%clk 0:00:15]}  Kh6 {[%clk 0:00:05]} 44. Rh7+ {[%clk 0:00:13]}  Kg5 {[%clk 0:00:05]} 45. h4# {[%clk 0:00:14]} 1-0


[Site "https://www.chess.com"]

[Event "Titled Tuesday Blitz March 21 Early 2023"]
[White "Rios Escobar, Adan"]
[Black "MKlose11"]
[WhiteFideId "3403645"]
[WhiteElo "2396"]
[BlackElo "2600"]
[Result "1-0"]
[Round "05"]
[TimeControl "180+2"]
[Date "2023.03.21"]
[WhiteClock "0:00:15"]
[BlackClock "0:00:50"]

1. d4 {[%clk 0:03:00]}  Nf6 {[%clk 0:02:59]} 2. g3 {[%clk 0:03:00]}  c5 {[%clk 0:02:59]} 3. d5 {[%clk 0:03:00]}  b5 {[%clk 0:02:59]} 4. a4 {[%clk 0:02:59]}  b4 {[%clk 0:02:59]} 5. c4 {[%clk 0:02:58]}  bxc3 {[%clk 0:02:58]} 6. Nxc3 {[%clk 0:02:56]}  d6 {[%clk 0:02:59]} 7. e4 {[%clk 0:02:52]}  g6 {[%clk 0:02:57]} 8. Bb5+ {[%clk 0:02:50]}  Bd7 {[%clk 0:02:57]} 9. f4 {[%clk 0:02:45]}  Bg7 {[%clk 0:02:56]} 10. e5 {[%clk 0:02:32]}  Ng8 {[%clk 0:02:51]} 11. Nf3 {[%clk 0:02:22]}  Nh6 {[%clk 0:02:46]} 12. O-O {[%clk 0:01:55]}  O-O {[%clk 0:02:42]} 13. Re1 {[%clk 0:01:53]}  a6 {[%clk 0:02:39]} 14. Bc4 {[%clk 0:01:52]}  Bg4 {[%clk 0:02:36]} 15. Qd3 {[%clk 0:01:42]}  Bxf3 {[%clk 0:02:28]} 16. Qxf3 {[%clk 0:01:42]}  Nf5 {[%clk 0:02:29]} 17. Qe4 {[%clk 0:01:23]}  Nd7 {[%clk 0:02:20]} 18. e6 {[%clk 0:01:18]}  fxe6 {[%clk 0:02:16]} 19. dxe6 {[%clk 0:01:15]}  Nb6 {[%clk 0:02:15]} 20. Bd5 {[%clk 0:00:58]}  Nxd5 {[%clk 0:02:10]} 21. Nxd5 {[%clk 0:00:58]}  Rb8 {[%clk 0:02:08]} 22. Ra3 {[%clk 0:00:51]}  Bxb2 {[%clk 0:02:01]} 23. Bxb2 {[%clk 0:00:51]}  Rxb2 {[%clk 0:02:02]} 24. g4 {[%clk 0:00:44]}  Nd4 {[%clk 0:01:56]} 25. Rh3 {[%clk 0:00:37]}  Rb3 {[%clk 0:01:25]} 26. Rxb3 {[%clk 0:00:29]}  Nxb3 {[%clk 0:01:26]} 27. Re3 {[%clk 0:00:21]}  Nd4 {[%clk 0:01:22]} 28. Rh3 {[%clk 0:00:20]}  Kh8 {[%clk 0:00:59]} 29. Qxg6 {[%clk 0:00:17]}  Nf3+ {[%clk 0:00:50]} 30. Kh1 {[%clk 0:00:15]} 1-0


[Site "https://www.chess.com"]

[Event "Titled Tuesday Blitz March 21 Early 2023"]
[White "Pinheiro, Iung Alicio de O."]
[Black "Krzywda, Andrzej"]
[WhiteFideId "2104350"]
[BlackFideId "1114565"]
[WhiteElo "2283"]
[BlackElo "2155"]
[Result "1-0"]
[Round "05"]
[TimeControl "180+2"]
[Date "2023.03.21"]
[WhiteClock "0:00:30"]
[BlackClock "0:00:23"]

1. e4 {[%clk 0:02:13]}  e5 {[%clk 0:02:57]} 2. Bc4 {[%clk 0:02:12]}  Nf6 {[%clk 0:02:51]} 3. d3 {[%clk 0:02:12]}  c6 {[%clk 0:02:50]} 4. Nf3 {[%clk 0:02:11]}  d5 {[%clk 0:02:50]} 5. Bb3 {[%clk 0:02:11]}  Bd6 {[%clk 0:02:49]} 6. Nc3 {[%clk 0:02:07]}  Be6 {[%clk 0:02:32]} 7. O-O {[%clk 0:02:04]}  h6 {[%clk 0:02:24]} 8. exd5 {[%clk 0:02:03]}  cxd5 {[%clk 0:02:21]} 9. Nb5 {[%clk 0:01:42]}  Nc6 {[%clk 0:02:13]} 10. c4 {[%clk 0:01:31]}  Bb8 {[%clk 0:02:07]} 11. cxd5 {[%clk 0:01:28]}  Bxd5 {[%clk 0:02:07]} 12. Be3 {[%clk 0:01:04]}  O-O {[%clk 0:02:01]} 13. Re1 {[%clk 0:00:55]}  a6 {[%clk 0:01:57]} 14. Nc3 {[%clk 0:00:54]}  Bxb3 {[%clk 0:01:57]} 15. Qxb3 {[%clk 0:00:55]}  Re8 {[%clk 0:01:50]} 16. Rad1 {[%clk 0:00:53]}  Qc7 {[%clk 0:01:45]} 17. Bb6 {[%clk 0:00:52]}  Qd6 {[%clk 0:01:45]} 18. Ne4 {[%clk 0:00:51]}  Qe7 {[%clk 0:01:32]} 19. Bc5 {[%clk 0:00:49]}  Qd8 {[%clk 0:01:30]} 20. Qxb7 {[%clk 0:00:47]}  Ra7 {[%clk 0:01:06]} 21. Qxc6 {[%clk 0:00:46]}  Rc7 {[%clk 0:01:03]} 22. Nxf6+ {[%clk 0:00:45]}  gxf6 {[%clk 0:01:01]} 23. Qd6 {[%clk 0:00:38]}  Qc8 {[%clk 0:00:49]} 24. Be3 {[%clk 0:00:34]}  Rc6 {[%clk 0:00:44]} 25. Qa3 {[%clk 0:00:33]}  Qg4 {[%clk 0:00:42]} 26. h3 {[%clk 0:00:33]}  Qh5 {[%clk 0:00:34]} 27. Qa4 {[%clk 0:00:32]}  Rec8 {[%clk 0:00:30]} 28. Qg4+ {[%clk 0:00:32]}  Qg6 {[%clk 0:00:29]} 29. Nh4 {[%clk 0:00:32]}  Qxg4 {[%clk 0:00:28]} 30. hxg4 {[%clk 0:00:33]}  Rc2 {[%clk 0:00:26]} 31. Rc1 {[%clk 0:00:31]}  Kg7 {[%clk 0:00:22]} 32. Nf5+ {[%clk 0:00:31]}  Kg6 {[%clk 0:00:23]} 33. Ne7+ {[%clk 0:00:30]} 1-0


[Site "https://www.chess.com"]

[Event "Titled Tuesday Blitz March 21 Early 2023"]
[White "Ordekalog"]
[Black "Melikhov, Evgeny V."]
[BlackFideId "4122046"]
[WhiteElo "2584"]
[BlackElo "2158"]
[Result "1/2-1/2"]
[Round "05"]
[TimeControl "180+2"]
[Date "2023.03.21"]
[WhiteClock "0:00:09"]
[BlackClock "0:00:26"]

1. e4 {[%clk 0:03:00]}  e5 {[%clk 0:02:59]} 2. Nf3 {[%clk 0:02:59]}  Nc6 {[%clk 0:02:59]} 3. Bb5 {[%clk 0:02:59]}  a6 {[%clk 0:02:59]} 4. Bxc6 {[%clk 0:02:51]}  dxc6 {[%clk 0:02:59]} 5. O-O {[%clk 0:02:51]}  f6 {[%clk 0:02:59]} 6. d4 {[%clk 0:02:51]}  exd4 {[%clk 0:02:59]} 7. Nxd4 {[%clk 0:02:52]}  c5 {[%clk 0:03:00]} 8. Nb3 {[%clk 0:02:52]}  Qxd1 {[%clk 0:02:59]} 9. Rxd1 {[%clk 0:02:53]}  Bd7 {[%clk 0:03:00]} 10. Bf4 {[%clk 0:02:52]}  O-O-O {[%clk 0:02:59]} 11. Nc3 {[%clk 0:02:50]}  Be6 {[%clk 0:02:59]} 12. Rxd8+ {[%clk 0:02:47]}  Kxd8 {[%clk 0:02:59]} 13. Rd1+ {[%clk 0:02:48]}  Kc8 {[%clk 0:03:00]} 14. Nd5 {[%clk 0:02:48]}  Bxd5 {[%clk 0:03:00]} 15. Rxd5 {[%clk 0:02:46]}  b6 {[%clk 0:03:00]} 16. f3 {[%clk 0:02:43]}  Ne7 {[%clk 0:02:58]} 17. Rd1 {[%clk 0:02:42]}  Nc6 {[%clk 0:02:57]} 18. c3 {[%clk 0:02:39]}  Be7 {[%clk 0:02:56]} 19. Kf2 {[%clk 0:02:38]}  Rd8 {[%clk 0:02:55]} 20. Rxd8+ {[%clk 0:02:37]}  Kxd8 {[%clk 0:02:50]} 21. Nd2 {[%clk 0:02:36]}  Bd6 {[%clk 0:02:42]} 22. Ke3 {[%clk 0:02:29]}  g5 {[%clk 0:02:28]} 23. Bg3 {[%clk 0:02:08]}  Bxg3 {[%clk 0:02:19]} 24. hxg3 {[%clk 0:02:09]}  h5 {[%clk 0:02:09]} 25. f4 {[%clk 0:01:58]}  Kd7 {[%clk 0:02:05]} 26. fxg5 {[%clk 0:01:40]}  fxg5 {[%clk 0:02:05]} 27. Nf3 {[%clk 0:01:40]}  g4 {[%clk 0:01:58]} 28. Ne1 {[%clk 0:01:38]}  Ne5 {[%clk 0:01:53]} 29. Kf4 {[%clk 0:01:38]}  Nc4 {[%clk 0:01:51]} 30. Nd3 {[%clk 0:01:37]}  Ke6 {[%clk 0:01:44]} 31. Kg5 {[%clk 0:01:25]}  Nd2 {[%clk 0:01:40]} 32. Kxh5 {[%clk 0:01:20]}  Nxe4 {[%clk 0:01:36]} 33. Kxg4 {[%clk 0:01:20]}  c4 {[%clk 0:01:36]} 34. Nf4+ {[%clk 0:01:14]}  Ke5 {[%clk 0:01:35]} 35. Kf3 {[%clk 0:01:14]}  Nc5 {[%clk 0:01:20]} 36. Ne2 {[%clk 0:01:01]}  Nd3 {[%clk 0:01:07]} 37. b4 {[%clk 0:00:47]}  cxb3 {[%clk 0:01:05]} 38. axb3 {[%clk 0:00:48]}  a5 {[%clk 0:01:05]} 39. Ke3 {[%clk 0:00:47]}  Ne1 {[%clk 0:00:58]} 40. c4 {[%clk 0:00:37]}  c6 {[%clk 0:00:53]} 41. Nc3 {[%clk 0:00:35]}  Nxg2+ {[%clk 0:00:44]} 42. Kf2 {[%clk 0:00:34]}  Kd4 {[%clk 0:00:43]} 43. Na4 {[%clk 0:00:21]}  Ne3 {[%clk 0:00:31]} 44. Nxb6 {[%clk 0:00:20]}  Nf5 {[%clk 0:00:27]} 45. g4 {[%clk 0:00:19]}  Ne7 {[%clk 0:00:27]} 46. g5 {[%clk 0:00:17]}  Kc3 {[%clk 0:00:27]} 47. Ke3 {[%clk 0:00:11]}  Kxb3 {[%clk 0:00:27]} 48. Ke4 {[%clk 0:00:10]}  a4 {[%clk 0:00:27]} 49. Nxa4 {[%clk 0:00:10]}  Kxa4 {[%clk 0:00:27]} 50. Ke5 {[%clk 0:00:10]}  Ng6+ {[%clk 0:00:25]} 51. Kd6 {[%clk 0:00:10]}  Kb4 {[%clk 0:00:24]} 52. Kxc6 {[%clk 0:00:08]}  Kxc4 {[%clk 0:00:24]} 53. Kd6 {[%clk 0:00:08]}  Kd4 {[%clk 0:00:25]} 54. Ke6 {[%clk 0:00:08]}  Ke4 {[%clk 0:00:25]} 55. Kf6 {[%clk 0:00:08]}  Nh4 {[%clk 0:00:26]} 56. g6 {[%clk 0:00:09]}  Nxg6 {[%clk 0:00:26]} 1/2-1/2


[Site "https://www.chess.com"]

[Event "Titled Tuesday Blitz March 21 Early 2023"]
[White "Lorenzo De La Riva, Lazaro"]
[Black "Koellner, Ruben Gideon"]
[WhiteFideId "2268809"]
[BlackFideId "12993093"]
[WhiteElo "2294"]
[BlackElo "2303"]
[Result "1-0"]
[Round "05"]
[TimeControl "180+2"]
[Date "2023.03.21"]
[WhiteClock "0:00:03"]
[BlackClock "0:00:07"]

1. e4 {[%clk 0:03:00]}  d6 {[%clk 0:03:00]} 2. d4 {[%clk 0:03:00]}  Nf6 {[%clk 0:03:01]} 3. Nc3 {[%clk 0:02:59]}  e5 {[%clk 0:03:01]} 4. Nf3 {[%clk 0:02:52]}  Nbd7 {[%clk 0:03:02]} 5. Bc4 {[%clk 0:02:49]}  Be7 {[%clk 0:03:02]} 6. a4 {[%clk 0:02:48]}  c6 {[%clk 0:03:02]} 7. O-O {[%clk 0:02:44]}  h6 {[%clk 0:03:02]} 8. Re1 {[%clk 0:02:38]}  Qc7 {[%clk 0:03:02]} 9. h3 {[%clk 0:02:22]}  Nf8 {[%clk 0:02:59]} 10. Be3 {[%clk 0:02:21]}  g5 {[%clk 0:02:57]} 11. dxe5 {[%clk 0:02:19]}  dxe5 {[%clk 0:02:58]} 12. Nxe5 {[%clk 0:02:15]}  Be6 {[%clk 0:02:55]} 13. Bxe6 {[%clk 0:01:58]}  Nxe6 {[%clk 0:02:56]} 14. Ng4 {[%clk 0:01:53]}  Rd8 {[%clk 0:02:53]} 15. Qf3 {[%clk 0:01:49]}  Nxg4 {[%clk 0:02:52]} 16. Qxg4 {[%clk 0:01:46]}  O-O {[%clk 0:02:46]} 17. Rad1 {[%clk 0:01:39]}  Rxd1 {[%clk 0:02:44]} 18. Rxd1 {[%clk 0:01:40]}  Rd8 {[%clk 0:02:44]} 19. Rxd8+ {[%clk 0:01:37]}  Qxd8 {[%clk 0:02:45]} 20. h4 {[%clk 0:01:30]}  Bb4 {[%clk 0:02:38]} 21. hxg5 {[%clk 0:01:29]}  hxg5 {[%clk 0:02:39]} 22. g3 {[%clk 0:01:15]}  Kg7 {[%clk 0:02:34]} 23. f4 {[%clk 0:01:13]}  Bxc3 {[%clk 0:02:31]} 24. bxc3 {[%clk 0:01:12]}  Qa5 {[%clk 0:01:55]} 25. f5 {[%clk 0:01:11]}  Qxc3 {[%clk 0:01:54]} 26. Bxg5 {[%clk 0:00:48]}  Nxg5 {[%clk 0:01:53]} 27. Qxg5+ {[%clk 0:00:49]}  Kf8 {[%clk 0:01:53]} 28. Qd8+ {[%clk 0:00:44]}  Kg7 {[%clk 0:01:53]} 29. Qd3 {[%clk 0:00:41]}  Qe5 {[%clk 0:01:45]} 30. Kf2 {[%clk 0:00:40]}  b5 {[%clk 0:01:45]} 31. axb5 {[%clk 0:00:39]}  cxb5 {[%clk 0:01:46]} 32. Kf3 {[%clk 0:00:37]}  a5 {[%clk 0:01:46]} 33. g4 {[%clk 0:00:33]}  a4 {[%clk 0:01:30]} 34. g5 {[%clk 0:00:31]}  b4 {[%clk 0:01:29]} 35. Qd8 {[%clk 0:00:26]}  a3 {[%clk 0:01:18]} 36. f6+ {[%clk 0:00:25]}  Kh7 {[%clk 0:01:09]} 37. Qf8 {[%clk 0:00:17]}  Qxg5 {[%clk 0:00:46]} 38. Qxf7+ {[%clk 0:00:17]}  Kh6 {[%clk 0:00:44]} 39. Qf8+ {[%clk 0:00:15]}  Kh5 {[%clk 0:00:41]} 40. Qh8+ {[%clk 0:00:13]}  Qh6 {[%clk 0:00:38]} 41. Qe8+ {[%clk 0:00:11]}  Qg6 {[%clk 0:00:17]} 42. f7 {[%clk 0:00:11]}  a2 {[%clk 0:00:15]} 43. f8=Q {[%clk 0:00:11]}  a1=Q {[%clk 0:00:14]} 44. Qf5+ {[%clk 0:00:07]}  Kh4 {[%clk 0:00:10]} 45. Qexg6 {[%clk 0:00:05]}  Qf1+ {[%clk 0:00:09]} 46. Ke3 {[%clk 0:00:05]}  Qe1+ {[%clk 0:00:09]} 47. Kd4 {[%clk 0:00:06]}  Qc3+ {[%clk 0:00:09]} 48. Kd5 {[%clk 0:00:06]}  Qd2+ {[%clk 0:00:09]} 49. Ke6 {[%clk 0:00:06]}  Qd6+ {[%clk 0:00:07]} 50. Kxd6 {[%clk 0:00:05]}  b3 {[%clk 0:00:07]} 51. Qgg4# {[%clk 0:00:03]} 1-0


[Site "https://www.chess.com"]